[Event "FIDE World Cup G12-A 2024"]
[Site "Batumi"]
[Date "2024.06.25"]
[Round "3.4"]
[White "Xikmatkhonova, Mokhinur"]
[Black "Wu, Yiting"]
[Result "1-0"]
[ECO "D00"]
[WhiteElo "1706"]
[BlackElo "1758"]
[Annotator "NA RC"]
[PlyCount "143"]
[EventDate "2024.06.23"]
[EventType "swiss"]
[EventCountry "GEO"]
[SourceTitle "playchess.com"]
[Source "ChessBase"]
[SourceQuality "1"]
[TimeControl "5400+30"]

1. d4 {[%emt 0:02:45]} d5 {[%emt 0:00:04]} 2. Nc3 {[%emt 0:00:07]} Nf6 {[%emt 0:00:08]} 3. Bf4 {[%emt 0:00:20]} e6 {[%emt 0:00:14]} 4. Nb5 {[%emt 0:00:37]} Bd6 {[%emt 0:00:16]} 5. Nxd6+ {[%emt 0:00:07]} cxd6 {[%emt 0:00:07]} 6. Nf3 {[%emt 0:00:38]} Nc6 {[%emt 0:00:17]} 7. e3 {[%emt 0:01:52]} O-O {[%emt 0:01:03]} 8. c3 {[%emt 0:01:11]} Re8 {[%emt 0:02:25]} 9. Bb5 {[%emt 0:09:25]} a6 {[%emt 0:06:55]} 10. Bxc6 {[%emt 0:06:34]} bxc6 {[%emt 0:00:10]} 11. Qa4 {[%emt 0:00:39]} Qc7 {[%emt 0:06:56]} 12. Qa3 {[%emt 0:12:08]} e5 {[%emt 0:13:31]} 13. Bg3 {[%emt 0:00:38]} Nd7 {[%emt 0:02:45]} 14. O-O {[%emt 0:00:59]} c5 {[%emt 0:04:18]} 15. Rac1 {[%emt 0:01:36]} Qb6 {[%emt 0:09:49]} 16. Rfd1 {[%emt 0:03:05]} e4 {[%emt 0:03:26]} 17. Ne1 {[%emt 0:05:58]} Nf6 {[%emt 0:04:50]} 18. Bh4 {[%emt 0:01:35]} c4 {[%emt 0:02:34]} 19. Bxf6 {[%emt 0:01:04]} gxf6 {[%emt 0:00:02]} 20. h3 {[%emt 0:04:32]} Kh8 {[%emt 0:01:17]} 21. b3 {[%emt 0:11:04]} Bb7 {[%emt 0:05:30]} 22. Qb2 {[%emt 0:06:36]} a5 {[%emt 0:04:10]} 23. Rb1 {[%emt 0:03:21]} Ba6 {[%emt 0:03:49]} 24. Qc2 {[%emt 0:06:51]} Qc6 {[%emt 0:01:21]} 25. b4 {[%emt 0:00:39]} a4 {[%emt 0:02:37]} 26. a3 {[%emt 0:00:47]} Bb5 {[%emt 0:00:50]} 27. Qe2 {[%emt 0:00:12]} Rg8 {[%emt 0:00:29]} 28. Qh5 {[%emt 0:00:41]} Rg6 {[%emt 0:01:25]} 29. g3 {[%emt 0:00:28]} Qb7 {[%emt 0:02:15]} 30. Ng2 {[%emt 0:01:42]} Kg7 {[%emt 0:04:36]} 31. Nf4 {[%emt 0:04:19]} Rg5 {[%emt 0:00:21]} 32. Qe2 {[%emt 0:01:11]} Bd7 {[%emt 0:04:52]} 33. Nh5+ {[%emt 0:04:13]} Kh8 {[%emt 0:02:32]} 34. Kg2 {[%emt 0:04:10]} Qc8 {[%emt 0:01:22]} 35. Rh1 {[%emt 0:00:36]} Qd8 {[%emt 0:02:08]} 36. b5 {[%emt 0:01:10]} Rb8 {[%emt 0:00:32]} 37. Nf4 {[%emt 0:01:53]} Qa5 {[%emt 0:01:47]} 38. Rb4 {[%emt 0:02:19]} Rxb5 {[%emt 0:00:27]} 39. Rhb1 {[%emt 0:00:14]} Rxb4 {[%emt 0:03:19]} 40. Rxb4 {[%emt 0:00:06]} Qa8 {[%emt 0:01:32]} 41. Qb2 {[%emt 0:00:52]} Rg8 {[%emt 0:00:32]} 42. Rb6 {[%emt 0:01:04]} Bc6 {[%emt 0:00:37]} 43. Qb4 {[%emt 0:00:23]} Rd8 {[%emt 0:00:16]} 44. Nh5 {[%emt 0:00:24]} f5 {[%emt 0:00:19]} 45. Nf4 {[%emt 0:00:12]} h6 {[%emt 0:01:50]} 46. Qb1 {[%emt 0:00:58]} Kg7 {[%emt 0:00:46]} 47. Qd1 {[%emt 0:00:15]} Rb8 {[%emt 0:00:50]} 48. Rxb8 {[%emt 0:01:01]} Qxb8 {[%emt 0:00:02]} 49. Qh5 {[%emt 0:00:09]} Qc8 {[%emt 0:00:23]} 50. Qh4 {[%emt 0:00:20]} Qf8 {[%emt 0:01:52]} 51. Nh5+ {[%emt 0:00:21]} Kh7 {[%emt 0:00:31]} 52. Qf6 {[%emt 0:00:23]} Bd7 {[%emt 0:00:13]} 53. Nf4 {[%emt 0:01:09]} Qg7 {[%emt 0:01:05]} 54. Qxd6 {[%emt 0:00:14]} Be6 {[%emt 0:00:24]} 55. Nxe6 {[%emt 0:00:25]} fxe6 {[%emt 0:00:01]} 56. Qxe6 {[%emt 0:00:01]} Qb7 {[%emt 0:00:29]} 57. Qxf5+ {[%emt 0:00:31]} Kg7 {[%emt 0:00:09]} 58. Qe5+ {[%emt 0:00:14]} Kh7 {[%emt 0:00:28]} 59. g4 {[%emt 0:01:11]} Qb3 {[%emt 0:00:43]} 60. Qxd5 {[%emt 0:00:20]} Qxa3 {[%emt 0:00:25]} 61. Qxe4+ {[%emt 0:00:21]} Kg7 {[%emt 0:00:16]} 62. Qe5+ {[%emt 0:00:23]} Kh7 {[%emt 0:00:20]} 63. d5 {[%emt 0:00:15]} Qc5 {[%emt 0:00:55]} 64. Qf5+ {[%emt 0:00:58]} Kh8 {[%emt 0:00:30]} 65. Qf6+ {[%emt 0:00:23]} Kh7 {[%emt 0:00:13]} 66. d6 {[%emt 0:01:03]} a3 {[%emt 0:00:52]} 67. Qf7+ {[%emt 0:00:27]} Kh8 {[%emt 0:00:04]} 68. d7 {[%emt 0:00:18]} Qc6+ {[%emt 0:00:13]} 69. f3 {[%emt 0:00:11]} Qb6 {[%emt 0:01:38]} 70. Qe8+ {[%emt 0:00:39]} Kg7 {[%emt 0:00:08]} 71. Qe7+ {[%emt 0:00:11]} Kg6 {[%emt 0:00:08]} 72. d8=Q {[%emt 0:00:23]} 1-0

[Event "FIDE World Cup G12-A 2024"]
[Site "Batumi"]
[Date "2024.06.25"]
[Round "3.5"]
[White "Kaminska, Zuzanna"]
[Black "Wang, April"]
[Result "1-0"]
[ECO "B11"]
[WhiteElo "1848"]
[BlackElo "1622"]
[Annotator "NA RC"]
[PlyCount "61"]
[EventDate "2024.06.23"]
[EventType "swiss"]
[EventCountry "GEO"]
[SourceTitle "playchess.com"]
[Source "ChessBase"]
[SourceQuality "1"]
[TimeControl "5400+30"]

1. e4 {[%emt 0:00:03]} c6 {[%emt 0:00:06]} 2. Nc3 {[%emt 0:00:16]} d5 {[%emt 0:00:09]} 3. Nf3 {[%emt 0:00:10]} dxe4 {[%emt 0:00:25]} 4. Nxe4 {[%emt 0:00:13]} Nf6 {[%emt 0:00:14]} 5. Qe2 {[%emt 0:00:17]} Nxe4 {[%emt 0:00:48]} 6. Qxe4 {[%emt 0:00:09]} Qa5 {[%emt 0:01:22]} 7. Ne5 {[%emt 0:05:43]} Nd7 {[%emt 0:04:59]} 8. f4 {[%emt 0:06:03]} Qd5 {[%emt 0:07:15]} 9. Bd3 {[%emt 0:06:05]} Nc5 {[%emt 0:07:54]} 10. Qxd5 {[%emt 0:01:10]} cxd5 {[%emt 0:00:10]} 11. Bb5+ {[%emt 0:01:01]} Nd7 {[%emt 0:02:04]} 12. O-O {[%emt 0:10:59]} a6 {[%emt 0:02:51]} 13. Ba4 {[%emt 0:03:03]} b5 {[%emt 0:03:25]} 14. Bb3 {[%emt 0:00:19]} Nxe5 {[%emt 0:01:12]} 15. Bxd5 {[%emt 0:02:44]} Rb8 {[%emt 0:04:57]} 16. fxe5 {[%emt 0:00:28]} e6 {[%emt 0:00:28]} 17. Bc6+ {[%emt 0:00:14]} Ke7 {[%emt 0:04:24]} 18. d4 {[%emt 0:05:21]} h6 {[%emt 0:01:51]} 19. Bd2 {[%emt 0:05:12]} Rb6 {[%emt 0:10:40]} 20. Bb4+ {[%emt 0:01:03]} Kd8 {[%emt 0:00:43]} 21. Ba5 {[%emt 0:00:32]} Kc7 {[%emt 0:01:50]} 22. Be4 {[%emt 0:00:33]} Bb7 {[%emt 0:05:45]} 23. Bxb6+ {[%emt 0:00:58]} Kxb6 {[%emt 0:00:11]} 24. Bxb7 {[%emt 0:00:07]} Kxb7 {[%emt 0:00:06]} 25. Rxf7+ {[%emt 0:00:05]} Kc6 {[%emt 0:00:25]} 26. c3 {[%emt 0:00:44]} Kd5 {[%emt 0:00:39]} 27. Raf1 {[%emt 0:00:08]} Bc5 {[%emt 0:02:49]} 28. dxc5 {[%emt 0:00:15]} Kxc5 {[%emt 0:00:14]} 29. Rxg7 {[%emt 0:00:16]} Kd5 {[%emt 0:00:31]} 30. Re7 {[%emt 0:00:10]} Rd8 {[%emt 0:00:30]} 31. Rd1+ {[%emt 0:00:10]} 1-0

[Event "FIDE World Cup G12-A 2024"]
[Site "Batumi"]
[Date "2024.06.25"]
[Round "3.6"]
[White "Venskaya, Nika"]
[Black "Kutateladze, Anastasia"]
[Result "1-0"]
[ECO "D02"]
[WhiteElo "1774"]
[BlackElo "1598"]
[Annotator "NA RC"]
[PlyCount "98"]
[EventDate "2024.06.23"]
[EventType "swiss"]
[EventCountry "GEO"]
[SourceTitle "playchess.com"]
[Source "ChessBase"]
[SourceQuality "1"]
[TimeControl "5400+30"]

1. d4 {[%emt 0:00:01]} Nf6 {[%emt 0:00:04]} 2. Nf3 {[%emt 0:00:04]} e6 {[%emt 0:00:04]} 3. g3 {[%emt 0:00:10]} d5 {[%emt 0:00:06]} 4. Bg2 {[%emt 0:00:08]} Bd6 {[%emt 0:03:50]} 5. c4 {[%emt 0:01:18]} O-O {[%emt 0:05:38]} 6. O-O {[%emt 0:00:08]} b6 {[%emt 0:06:15]} 7. cxd5 {[%emt 0:00:41]} exd5 {[%emt 0:00:07]} 8. Nc3 {[%emt 0:00:08]} Bb7 {[%emt 0:03:30]} 9. Bg5 {[%emt 0:04:02]} h6 {[%emt 0:01:17]} 10. Bxf6 {[%emt 0:02:11]} Qxf6 {[%emt 0:03:29]} 11. Rc1 {[%emt 0:00:09]} Qe6 {[%emt 0:11:29]} 12. Nb5 {[%emt 0:06:46]} c6 {[%emt 0:07:14]} 13. Nxd6 {[%emt 0:04:29]} Qxd6 {[%emt 0:00:03]} 14. Ne5 {[%emt 0:02:47]} Nd7 {[%emt 0:06:05]} 15. Nd3 {[%emt 0:00:23]} Rfe8 {[%emt 0:04:18]} 16. e3 {[%emt 0:04:24]} Rac8 {[%emt 0:13:36]} 17. Qa4 {[%emt 0:10:25]} a5 {[%emt 0:04:55]} 18. Rfd1 {[%emt 0:00:22]} Ba6 {[%emt 0:01:03]} 19. Bh3 {[%emt 0:09:21]} Bb5 {[%emt 0:03:30]} 20. Qb3 {[%emt 0:02:10]} Bc4 {[%emt 0:01:28]} 21. Qc3 {[%emt 0:01:13]} Bxd3 {[%emt 0:00:41]} 22. Rxd3 {[%emt 0:05:08]} Rc7 {[%emt 0:02:32]} 23. Qb3 {[%emt 0:07:01]} Rb8 {[%emt 0:04:27]} 24. Rdc3 {[%emt 0:03:36]} g6 {[%emt 0:07:34]} 25. Qc2 {[%emt 0:08:16]} Rbc8 {[%emt 0:00:49]} 26. e4 {[%emt 0:06:05]} dxe4 {[%emt 0:00:40]} 27. Qxe4 {[%emt 0:00:02]} f5 {[%emt 0:01:05]} 28. Qe3 {[%emt 0:00:47]} Kg7 {[%emt 0:01:34]} 29. Bg2 {[%emt 0:01:03]} c5 {[%emt 0:01:28]} 30. dxc5 {[%emt 0:03:06]} Rxc5 {[%emt 0:00:25]} 31. Re1 {[%emt 0:06:52]} Ne5 {[%emt 0:03:09]} 32. Rxc5 {[%emt 0:02:13]} Rxc5 {[%emt 0:00:02]} 33. Qb3 {[%emt 0:02:57]} Qc7 {[%emt 0:02:53]} 34. h3 {[%emt 0:01:08]} b5 {[%emt 0:00:30]} 35. Kh2 {[%emt 0:02:05]} a4 {[%emt 0:00:34]} 36. Qe6 {[%emt 0:01:21]} Nf7 {[%emt 0:01:10]} 37. Qe3 {[%emt 0:02:33]} Kh7 {[%emt 0:00:46]} 38. Qd4 {[%emt 0:00:57]} Qd6 {[%emt 0:00:28]} 39. Qh4 {[%emt 0:02:13]} g5 {[%emt 0:00:29]} 40. Qh5 {[%emt 0:00:13]} Qg6 {[%emt 0:00:24]} 41. Qf3 {[%emt 0:00:10]} Qf6 {[%emt 0:00:39]} 42. Qb7 {[%emt 0:00:27]} Kg6 {[%emt 0:00:22]} 43. Bd5 {[%emt 0:00:33]} Ne5 {[%emt 0:00:38]} 44. Rxe5 {[%emt 0:00:41]} Rc2 {[%emt 0:00:36]} 45. Re6 {[%emt 0:00:28]} Rxf2+ {[%emt 0:00:05]} 46. Kg1 {[%emt 0:00:05]} Rxb2 {[%emt 0:00:14]} 47. Rxf6+ {[%emt 0:00:07]} Kxf6 {[%emt 0:00:03]} 48. Qf7+ {[%emt 0:00:06]} Ke5 {[%emt 0:00:05]} 49. Qg7+ {[%emt 0:00:05]} Kxd5 {[%emt 0:02:37]} 1-0

[Event "FIDE World Cup G12-A 2024"]
[Site "Batumi"]
[Date "2024.06.25"]
[Round "3.7"]
[White "Kedelidze, Aneta"]
[Black "Chichinadze, Anastasia"]
[Result "0-1"]
[ECO "C78"]
[WhiteElo "1544"]
[BlackElo "1724"]
[Annotator "NA RC"]
[PlyCount "84"]
[EventDate "2024.06.23"]
[EventType "swiss"]
[EventCountry "GEO"]
[SourceTitle "playchess.com"]
[Source "ChessBase"]
[SourceQuality "1"]
[TimeControl "5400+30"]

1. e4 {[%emt 0:00:14]} e5 {[%emt 0:00:34]} 2. Nf3 {[%emt 0:00:05]} Nc6 {[%emt 0:00:02]} 3. Bb5 {[%emt 0:00:10]} a6 {[%emt 0:00:06]} 4. Ba4 {[%emt 0:00:05]} Nf6 {[%emt 0:00:05]} 5. d3 {[%emt 0:00:09]} b5 {[%emt 0:00:07]} 6. Bb3 {[%emt 0:00:09]} Bc5 {[%emt 0:00:20]} 7. c3 {[%emt 0:01:04]} d6 {[%emt 0:04:02]} 8. O-O {[%emt 0:00:23]} O-O {[%emt 0:02:51]} 9. Bg5 {[%emt 0:01:04]} Bb7 {[%emt 0:09:39]} 10. Nbd2 {[%emt 0:06:59]} Bb6 {[%emt 0:14:05]} 11. a4 {[%emt 0:05:59]} Nb8 {[%emt 0:15:19]} 12. Bc2 {[%emt 0:09:58]} h6 {[%emt 0:07:11]} 13. Bxf6 {[%emt 0:11:49]} Qxf6 {[%emt 0:00:21]} 14. b4 {[%emt 0:00:25]} Nd7 {[%emt 0:07:08]} 15. Qb1 {[%emt 0:14:17]} c6 {[%emt 0:08:59]} 16. Qb2 {[%emt 0:04:05]} Rfd8 {[%emt 0:13:02]} 17. Ra2 {[%emt 0:04:03]} Nf8 {[%emt 0:02:00]} 18. axb5 {[%emt 0:13:18]} axb5 {[%emt 0:03:07]} 19. Rxa8 {[%emt 0:06:07]} Rxa8 {[%emt 0:01:32]} 20. Nb3 {[%emt 0:00:43]} Ne6 {[%emt 0:01:22]} 21. Bb1 {[%emt 0:06:54]} Nf4 {[%emt 0:01:36]} 22. d4 {[%emt 0:02:46]} Bc8 {[%emt 0:03:30]} 23. Ne1 {[%emt 0:04:20]} exd4 {[%emt 0:02:35]} 24. cxd4 {[%emt 0:02:20]} Bxd4 {[%emt 0:00:38]} 25. Nxd4 {[%emt 0:01:00]} Qxd4 {[%emt 0:00:05]} 26. Qc2 {[%emt 0:00:11]} Qc4 {[%emt 0:00:40]} 27. Qxc4 {[%emt 0:00:46]} bxc4 {[%emt 0:00:04]} 28. Nc2 {[%emt 0:00:59]} Ne2+ {[%emt 0:00:13]} 29. Kh1 {[%emt 0:00:06]} Nc3 {[%emt 0:00:07]} 30. Nd4 {[%emt 0:00:58]} c5 {[%emt 0:01:09]} 31. bxc5 {[%emt 0:00:13]} dxc5 {[%emt 0:00:01]} 32. Nf3 {[%emt 0:00:49]} Rb8 {[%emt 0:00:50]} 33. Bc2 {[%emt 0:00:56]} Rb2 {[%emt 0:00:04]} 34. Bd1 {[%emt 0:01:03]} Nxe4 {[%emt 0:00:26]} 35. Kg1 {[%emt 0:00:13]} c3 {[%emt 0:00:45]} 36. Re1 {[%emt 0:00:55]} Bb7 {[%emt 0:01:44]} 37. Be2 {[%emt 0:01:47]} Nd2 {[%emt 0:01:57]} 38. Nxd2 {[%emt 0:01:13]} cxd2 {[%emt 0:00:31]} 39. Rd1 {[%emt 0:00:08]} Bd5 {[%emt 0:00:24]} 40. f3 {[%emt 0:00:09]} c4 {[%emt 0:00:05]} 41. Kf2 {[%emt 0:00:25]} c3 {[%emt 0:00:11]} 42. Ke3 {[%emt 0:00:03]} c2 {[%emt 0:00:46]} 0-1

[Event "FIDE World Cup G12-A 2024"]
[Site "Batumi"]
[Date "2024.06.25"]
[Round "3.8"]
[White "Potikha, Shelley"]
[Black "Muradova, Nebahat"]
[Result "0-1"]
[ECO "B40"]
[WhiteElo "1464"]
[BlackElo "1626"]
[Annotator "NA RC"]
[PlyCount "151"]
[EventDate "2024.06.23"]
[EventType "swiss"]
[EventCountry "GEO"]
[SourceTitle "playchess.com"]
[Source "ChessBase"]
[SourceQuality "1"]
[TimeControl "5400+30"]

1. e4 {[%emt 0:00:03]} c5 {[%emt 0:00:11]} 2. Nf3 {[%emt 0:00:25]} Nc6 {[%emt 0:00:05]} 3. d3 {[%emt 0:00:40]} e6 {[%emt 0:00:07]} 4. g3 {[%emt 0:00:29]} Nf6 {[%emt 0:00:26]} 5. Bg2 {[%emt 0:01:12]} d5 {[%emt 0:00:56]} 6. e5 {[%emt 0:00:59]} Nd7 {[%emt 0:00:11]} 7. Bf4 {[%emt 0:01:33]} Be7 {[%emt 0:02:59]} 8. Nbd2 {[%emt 0:03:32]} a6 {[%emt 0:01:10]} 9. a4 {[%emt 0:07:49]} O-O {[%emt 0:00:23]} 10. O-O {[%emt 0:00:54]} Rb8 {[%emt 0:05:37]} 11. Re1 {[%emt 0:02:39]} b5 {[%emt 0:02:05]} 12. axb5 {[%emt 0:01:03]} axb5 {[%emt 0:00:38]} 13. h4 {[%emt 0:02:03]} c4 {[%emt 0:01:34]} 14. d4 {[%emt 0:03:43]} b4 {[%emt 0:02:29]} 15. c3 {[%emt 0:03:40]} Bb7 {[%emt 0:02:09]} 16. Bg5 {[%emt 0:02:27]} b3 {[%emt 0:04:08]} 17. Bxe7 {[%emt 0:01:53]} Qxe7 {[%emt 0:00:22]} 18. h5 {[%emt 0:02:44]} h6 {[%emt 0:00:22]} 19. g4 {[%emt 0:01:23]} Ra8 {[%emt 0:06:34]} 20. Qe2 {[%emt 0:02:41]} Nb6 {[%emt 0:05:18]} 21. Nf1 {[%emt 0:19:01]} Rxa1 {[%emt 0:03:16]} 22. Rxa1 {[%emt 0:00:20]} Ra8 {[%emt 0:00:20]} 23. Rxa8+ {[%emt 0:02:35]} Bxa8 {[%emt 0:00:27]} 24. Qd2 {[%emt 0:02:47]} Na4 {[%emt 0:03:04]} 25. Ng3 {[%emt 0:06:25]} Nb8 {[%emt 0:16:56]} 26. Ne2 {[%emt 0:04:26]} Nd7 {[%emt 0:01:46]} 27. Nf4 {[%emt 0:03:38]} Ndb6 {[%emt 0:00:30]} 28. Nh3 {[%emt 0:01:28]} Qb7 {[%emt 0:06:58]} 29. g5 {[%emt 0:01:45]} Nxb2 {[%emt 0:01:08]} 30. Qxb2 {[%emt 0:01:29]} Na4 {[%emt 0:00:06]} 31. Qa3 {[%emt 0:05:01]} b2 {[%emt 0:01:41]} 32. Nd2 {[%emt 0:02:08]} b1=Q+ {[%emt 0:00:15]} 33. Nxb1 {[%emt 0:00:24]} Qxb1+ {[%emt 0:00:07]} 34. Kh2 {[%emt 0:00:21]} Bc6 {[%emt 0:02:09]} 35. Qd6 {[%emt 0:02:51]} Qb5 {[%emt 0:01:03]} 36. gxh6 {[%emt 0:00:53]} gxh6 {[%emt 0:00:04]} 37. Qd8+ {[%emt 0:01:00]} Kh7 {[%emt 0:01:45]} 38. Qf6 {[%emt 0:02:03]} Be8 {[%emt 0:01:12]} 39. Qf3 {[%emt 0:04:07]} Qb3 {[%emt 0:00:46]} 40. Qf6 {[%emt 0:01:05]} Nxc3 {[%emt 0:03:46]} 41. Nf4 {[%emt 0:00:39]} Qd1 {[%emt 0:02:00]} 42. Qe7 {[%emt 0:00:39]} Qg4 {[%emt 0:00:40]} 43. Nh3 {[%emt 0:02:38]} Qg8 {[%emt 0:03:23]} 44. Nf4 {[%emt 0:01:27]} Nb5 {[%emt 0:02:50]} 45. Nxe6 {[%emt 0:01:21]} c3 {[%emt 0:00:41]} 46. Nc7 {[%emt 0:00:30]} Qg5 {[%emt 0:03:12]} 47. Qc5 {[%emt 0:00:22]} Qxh5+ {[%emt 0:00:18]} 48. Bh3 {[%emt 0:00:14]} Nxc7 {[%emt 0:00:55]} 49. Qxc7 {[%emt 0:00:11]} Qf3 {[%emt 0:00:30]} 50. Bg2 {[%emt 0:00:22]} Qf4+ {[%emt 0:00:47]} 51. Kh3 {[%emt 0:00:52]} Qxd4 {[%emt 0:00:08]} 52. Kh2 {[%emt 0:00:21]} Qh4+ {[%emt 0:01:55]} 53. Kg1 {[%emt 0:00:14]} Qa4 {[%emt 0:00:58]} 54. Qxc3 {[%emt 0:00:15]} d4 {[%emt 0:00:50]} 55. Be4+ {[%emt 0:00:30]} Kh8 {[%emt 0:00:11]} 56. Qh3 {[%emt 0:00:44]} Qd1+ {[%emt 0:00:15]} 57. Kg2 {[%emt 0:00:21]} Qd2 {[%emt 0:00:14]} 58. Qc8 {[%emt 0:00:45]} Qg5+ {[%emt 0:00:13]} 59. Kf1 {[%emt 0:00:21]} Qg8 {[%emt 0:00:48]} 60. Qc4 {[%emt 0:00:51]} Qg4 {[%emt 0:00:42]} 61. Bd3 {[%emt 0:01:03]} h5 {[%emt 0:01:19]} 62. Qa6 {[%emt 0:00:33]} Qf4 {[%emt 0:00:43]} 63. Qc8 {[%emt 0:00:22]} Qxe5 {[%emt 0:00:10]} 64. Qh3 {[%emt 0:00:31]} Qg5 {[%emt 0:01:18]} 65. Qc8 {[%emt 0:00:22]} Qe7 {[%emt 0:00:58]} 66. Qh3 {[%emt 0:00:50]} h4 {[%emt 0:00:17]} 67. Qg4 {[%emt 0:00:13]} Qf6 {[%emt 0:00:59]} 68. Qh5+ {[%emt 0:00:16]} Kg8 {[%emt 0:00:08]} 69. Qg4+ {[%emt 0:00:33]} Kf8 {[%emt 0:00:07]} 70. Qc8 {[%emt 0:00:35]} Qg5 {[%emt 0:01:16]} 71. Qc7 {[%emt 0:00:38]} Kg7 {[%emt 0:03:17]} 72. Qc8 {[%emt 0:00:29]} Ba4 {[%emt 0:01:15]} 73. Qc4 {[%emt 0:00:19]} Bd1 {[%emt 0:01:44]} 74. Qxd4+ {[%emt 0:00:13]} Kg8 {[%emt 0:00:09]} 75. Bc4 {[%emt 0:01:01]} Bf3 {[%emt 0:01:07]} 76. Qe3 {[%emt 0:01:16]} 0-1

[Event "FIDE World Cup G12-A 2024"]
[Site "Batumi"]
[Date "2024.06.25"]
[Round "3.9"]
[White "Sevastsyanchuk, Anastasiya"]
[Black "Gulishyan, Eseniya"]
[Result "1-0"]
[ECO "C67"]
[WhiteElo "1531"]
[BlackElo "1434"]
[Annotator "NA RC"]
[PlyCount "215"]
[EventDate "2024.06.23"]
[EventType "swiss"]
[EventCountry "GEO"]
[SourceTitle "playchess.com"]
[Source "ChessBase"]
[SourceQuality "1"]
[TimeControl "5400+30"]

1. e4 {[%emt 0:00:02]} e5 {[%emt 0:00:19]} 2. Nf3 {[%emt 0:00:05]} Nc6 {[%emt 0:00:05]} 3. Bb5 {[%emt 0:00:04]} Nf6 {[%emt 0:00:05]} 4. O-O {[%emt 0:01:34]} Nxe4 {[%emt 0:00:05]} 5. d4 {[%emt 0:00:07]} Nd6 {[%emt 0:00:08]} 6. Ba4 {[%emt 0:00:36]} exd4 {[%emt 0:11:18]} 7. Nxd4 {[%emt 0:01:33]} Nxd4 {[%emt 0:00:41]} 8. Qxd4 {[%emt 0:00:06]} Qf6 {[%emt 0:01:33]} 9. Qc5 {[%emt 0:08:09]} Nf5 {[%emt 0:30:03]} 10. Re1+ {[%emt 0:01:59]} Kd8 {[%emt 0:02:37]} 11. Qd5 {[%emt 0:05:03]} Be7 {[%emt 0:08:05]} 12. Nc3 {[%emt 0:00:53]} c6 {[%emt 0:10:43]} 13. Qd3 {[%emt 0:03:36]} Qg6 {[%emt 0:04:57]} 14. Qe4 {[%emt 0:14:40]} Qe6 {[%emt 0:02:28]} 15. Bf4 {[%emt 0:02:48]} Qxe4 {[%emt 0:00:34]} 16. Nxe4 {[%emt 0:00:18]} d5 {[%emt 0:01:25]} 17. Rad1 {[%emt 0:01:35]} Bd7 {[%emt 0:04:16]} 18. Ng5 {[%emt 0:00:47]} Bxg5 {[%emt 0:04:04]} 19. Bxg5+ {[%emt 0:00:08]} f6 {[%emt 0:00:07]} 20. Bf4 {[%emt 0:02:13]} Re8 {[%emt 0:01:33]} 21. Rxe8+ {[%emt 0:03:17]} Kxe8 {[%emt 0:00:23]} 22. g4 {[%emt 0:10:14]} Nh4 {[%emt 0:01:57]} 23. h3 {[%emt 0:02:17]} Be6 {[%emt 0:03:10]} 24. c3 {[%emt 0:00:57]} Ng6 {[%emt 0:01:34]} 25. Bg3 {[%emt 0:00:13]} Kf7 {[%emt 0:01:11]} 26. Bc2 {[%emt 0:01:27]} Ne5 {[%emt 0:00:27]} 27. f4 {[%emt 0:00:42]} Nc4 {[%emt 0:02:07]} 28. Re1 {[%emt 0:02:35]} Re8 {[%emt 0:03:02]} 29. b3 {[%emt 0:00:53]} Nb6 {[%emt 0:01:20]} 30. Bxh7 {[%emt 0:00:41]} Rh8 {[%emt 0:01:13]} 31. f5 {[%emt 0:00:10]} Rxh7 {[%emt 0:00:28]} 32. fxe6+ {[%emt 0:00:27]} Ke7 {[%emt 0:00:38]} 33. Bd6+ {[%emt 0:00:17]} Ke8 {[%emt 0:00:10]} 34. Kg2 {[%emt 0:00:42]} Nc8 {[%emt 0:01:02]} 35. Ba3 {[%emt 0:00:49]} b6 {[%emt 0:02:16]} 36. Kg3 {[%emt 0:00:42]} g5 {[%emt 0:00:22]} 37. Rf1 {[%emt 0:00:58]} Rh6 {[%emt 0:00:04]} 38. Rd1 {[%emt 0:00:09]} Ne7 {[%emt 0:00:41]} 39. c4 {[%emt 0:00:24]} f5 {[%emt 0:01:25]} 40. Bxe7 {[%emt 0:00:41]} f4+ {[%emt 0:00:09]} 41. Kg2 {[%emt 0:00:04]} Kxe7 {[%emt 0:00:10]} 42. cxd5 {[%emt 0:00:07]} cxd5 {[%emt 0:00:16]} 43. Rxd5 {[%emt 0:00:10]} Rg6 {[%emt 0:01:59]} 44. Rd7+ {[%emt 0:05:38]} Kxe6 {[%emt 0:00:05]} 45. Rxa7 {[%emt 0:00:05]} Ke5 {[%emt 0:00:05]} 46. Rd7 {[%emt 0:00:21]} Re6 {[%emt 0:00:43]} 47. Rd2 {[%emt 0:00:56]} Kf6 {[%emt 0:00:17]} 48. a4 {[%emt 0:00:36]} Ke7 {[%emt 0:00:43]} 49. b4 {[%emt 0:01:38]} Re4 {[%emt 0:01:01]} 50. Rb2 {[%emt 0:00:06]} Kd6 {[%emt 0:00:27]} 51. a5 {[%emt 0:00:24]} b5 {[%emt 0:00:10]} 52. Rb3 {[%emt 0:01:34]} Rc4 {[%emt 0:00:55]} 53. h4 {[%emt 0:02:22]} gxh4 {[%emt 0:00:17]} 54. g5 {[%emt 0:00:04]} Ke6 {[%emt 0:00:24]} 55. Kh3 {[%emt 0:00:37]} Kf5 {[%emt 0:00:49]} 56. Kxh4 {[%emt 0:00:13]} Rc8 {[%emt 0:00:25]} 57. Kh3 {[%emt 0:00:18]} Kxg5 {[%emt 0:00:10]} 58. a6 {[%emt 0:00:04]} Ra8 {[%emt 0:00:25]} 59. Ra3 {[%emt 0:00:04]} Ra7 {[%emt 0:00:05]} 60. Ra5 {[%emt 0:00:06]} Kf6 {[%emt 0:01:25]} 61. Kg4 {[%emt 0:00:14]} Ke6 {[%emt 0:00:35]} 62. Kxf4 {[%emt 0:00:07]} Kd6 {[%emt 0:00:06]} 63. Ke4 {[%emt 0:00:28]} Kc6 {[%emt 0:00:14]} 64. Ke5 {[%emt 0:00:57]} Re7+ {[%emt 0:00:34]} 65. Kf6 {[%emt 0:00:04]} Ra7 {[%emt 0:00:06]} 66. Ke6 {[%emt 0:00:29]} Kb6 {[%emt 0:01:45]} 67. Kd6 {[%emt 0:00:24]} Ra8 {[%emt 0:00:30]} 68. Kd7 {[%emt 0:00:57]} Ra7+ {[%emt 0:00:15]} 69. Kd6 {[%emt 0:01:37]} Ra8 {[%emt 0:00:14]} 70. Ra1 {[%emt 0:00:13]} Ra7 {[%emt 0:00:14]} 71. Rc1 {[%emt 0:00:35]} Rxa6 {[%emt 0:01:15]} 72. Rh1 {[%emt 0:01:31]} Ra4 {[%emt 0:00:23]} 73. Rh4 {[%emt 0:00:07]} Ra6 {[%emt 0:00:14]} 74. Kd5 {[%emt 0:00:05]} Ra1 {[%emt 0:00:46]} 75. Rh6+ {[%emt 0:00:04]} Kb7 {[%emt 0:00:08]} 76. Kc5 {[%emt 0:00:08]} Rc1+ {[%emt 0:00:30]} 77. Kxb5 {[%emt 0:00:04]} Ka7 {[%emt 0:00:54]} 78. Rh7+ {[%emt 0:00:12]} Kb8 {[%emt 0:00:06]} 79. Kb6 {[%emt 0:00:04]} Kc8 {[%emt 0:00:13]} 80. b5 {[%emt 0:00:15]} Rg1 {[%emt 0:01:07]} 81. Rh6 {[%emt 0:00:10]} Rg7 {[%emt 0:00:44]} 82. Rh8+ {[%emt 0:01:38]} Kd7 {[%emt 0:00:05]} 83. Rb8 {[%emt 0:00:33]} Kd6 {[%emt 0:00:30]} 84. Rb7 {[%emt 0:00:08]} Rg1 {[%emt 0:00:38]} 85. Rc7 {[%emt 0:00:11]} Rh1 {[%emt 0:00:37]} 86. Kb7 {[%emt 0:00:09]} Rh5 {[%emt 0:00:27]} 87. b6 {[%emt 0:00:05]} Rh1 {[%emt 0:00:41]} 88. Kb8 {[%emt 0:00:05]} Rb1 {[%emt 0:00:32]} 89. b7 {[%emt 0:00:05]} Ra1 {[%emt 0:00:28]} 90. Kc8 {[%emt 0:00:13]} Rb1 {[%emt 0:00:31]} 91. b8=Q {[%emt 0:00:06]} Rxb8+ {[%emt 0:00:07]} 92. Kxb8 {[%emt 0:00:05]} Kd5 {[%emt 0:00:05]} 93. Kb7 {[%emt 0:00:04]} Kd6 {[%emt 0:00:07]} 94. Kb6 {[%emt 0:00:09]} Kd5 {[%emt 0:00:24]} 95. Rc1 {[%emt 0:00:06]} Kd4 {[%emt 0:00:14]} 96. Kb5 {[%emt 0:00:04]} Ke4 {[%emt 0:00:41]} 97. Rd1 {[%emt 0:00:03]} Ke5 {[%emt 0:00:13]} 98. Kc4 {[%emt 0:00:05]} Kf4 {[%emt 0:00:13]} 99. Re1 {[%emt 0:00:03]} Kf5 {[%emt 0:00:15]} 100. Kd4 {[%emt 0:00:05]} Kf4 {[%emt 0:00:12]} 101. Rf1+ {[%emt 0:00:04]} Kg5 {[%emt 0:00:06]} 102. Ke4 {[%emt 0:00:06]} Kg6 {[%emt 0:00:05]} 103. Ke5 {[%emt 0:00:04]} Kg7 {[%emt 0:00:06]} 104. Ke6 {[%emt 0:00:05]} Kg6 {[%emt 0:00:04]} 105. Rg1+ {[%emt 0:00:05]} Kh5 {[%emt 0:00:06]} 106. Kf6 {[%emt 0:00:06]} Kh4 {[%emt 0:00:05]} 107. Kf5 {[%emt 0:00:04]} Kh3 {[%emt 0:00:04]} 108. Kf4 {[%emt 0:00:03]} 1-0